[Event "European Rapid Championship 2021"]
[Site "Katowice"]
[Date "2021.12.19"]
[Round "8.20"]
[White "Bjerre, Jonas Buhl"]
[Black "Kos, Pawel"]
[Result "1-0"]
[ECO "A48"]
[WhiteElo "2330"]
[BlackElo "2199"]
[Annotator "NA"]
[PlyCount "69"]
[EventDate "2021.12.18"]
[EventType "swiss"]
[EventCountry "POL"]
[SourceTitle "playchess.com"]
[Source "ChessBase"]
[SourceQuality "1"]
[TimeControl "900+10"]

1. d4 {[%emt 0:00:01]} Nf6 {[%emt 0:00:01]} 2. Nf3 {[%emt 0:00:01]} g6 {
[%emt 0:00:06]} 3. c4 {[%emt 0:00:04]} d5 {[%emt 0:00:20]} 4. cxd5 {[%emt 0:00:
08]} Bg7 {[%emt 0:00:04]} 5. Qa4+ {[%emt 0:00:27]} Nbd7 {[%emt 0:00:57]} 6. Nc3
{[%emt 0:00:09]} a6 {[%emt 0:00:07]} 7. e4 {[%emt 0:00:08]} O-O {[%emt 0:00:04]
} 8. Be2 {[%emt 0:00:23]} b5 {[%emt 0:00:32]} 9. Qc2 {[%emt 0:00:13]} Bb7 {
[%emt 0:00:59]} 10. O-O {[%emt 0:00:11]} Nb6 {[%emt 0:00:15]} 11. Ne5 {[%emt 0:
01:48]} b4 {[%emt 0:01:34]} 12. Nd1 {[%emt 0:00:24]} e6 {[%emt 0:00:03]} 13.
dxe6 {[%emt 0:00:12]} Bxe4 {[%emt 0:00:12]} 14. exf7+ {[%emt 0:00:19]} Kh8 {
[%emt 0:01:42]} 15. Qc5 {[%emt 0:00:51]} a5 {[%emt 0:01:54]} 16. Bg5 {[%emt 0:
00:27]} Na4 {[%emt 0:01:40]} 17. Qb5 {[%emt 0:01:50]} Qxd4 {[%emt 0:01:25]} 18.
Nf3 {[%emt 0:00:17]} Qc5 {[%emt 0:02:27]} 19. Bxf6 {[%emt 0:00:36]} Bxf6 {
[%emt 0:00:07]} 20. Qxa4 {[%emt 0:00:11]} Bc6 {[%emt 0:00:41]} 21. Qb3 {
[%emt 0:00:06]} a4 {[%emt 0:00:02]} 22. Qe3 {[%emt 0:01:12]} Qxe3 {[%emt 0:00:
03]} 23. fxe3 {[%emt 0:00:02]} Rad8 {[%emt 0:00:47]} 24. Rc1 {[%emt 0:01:27]}
Bd5 {[%emt 0:00:22]} 25. Bc4 {[%emt 0:00:05]} Be4 {[%emt 0:01:17]} 26. Nd4 {
[%emt 0:00:23]} Bxd4 {[%emt 0:00:12]} 27. exd4 {[%emt 0:00:01]} Rxd4 {[%emt 0:
00:01]} 28. Ne3 {[%emt 0:00:07]} c6 {[%emt 0:00:24]} 29. Rfd1 {[%emt 0:00:05]}
c5 {[%emt 0:00:38]} 30. Rxd4 {[%emt 0:00:08]} cxd4 {[%emt 0:00:01]} 31. Ng4 {
[%emt 0:00:03]} Kg7 {[%emt 0:00:47]} 32. Rd1 {[%emt 0:00:01]} Rd8 {[%emt 0:00:
05]} 33. Ne5 {[%emt 0:00:09]} d3 {[%emt 0:00:40]} 34. Bxd3 {[%emt 0:00:06]} Bd5
{[%emt 0:00:04]} 35. Bc4 {[%emt 0:00:05]} 1-0

[Event "European Rapid Championship 2021"]
[Site "Katowice"]
[Date "2021.12.19"]
[Round "8.20"]
[White "Druckenthaner, Andreas"]
[Black "Hasterok, Mateusz"]
[Result "1-0"]
[ECO "B40"]
[WhiteElo "2291"]
[BlackElo "2132"]
[Annotator "NA"]
[PlyCount "45"]
[EventDate "2021.12.18"]
[EventType "swiss"]
[EventCountry "POL"]
[SourceTitle "playchess.com"]
[Source "ChessBase"]
[SourceQuality "1"]
[TimeControl "900+10"]

1. e4 {[%emt 0:00:05]} c5 {[%emt 0:00:01]} 2. Nf3 {[%emt 0:00:04]} e6 {[%emt 0:
00:16]} 3. d4 {[%emt 0:00:02]} cxd4 {[%emt 0:00:01]} 4. Bg5 {[%emt 0:00:02]}
Qa5+ {[%emt 0:00:15]} 5. Nbd2 {[%emt 0:00:02]} Nc6 {[%emt 0:00:15]} 6. Bd3 {
[%emt 0:00:02]} Be7 {[%emt 0:01:17]} 7. Bxe7 {[%emt 0:00:05]} Ngxe7 {[%emt 0:
00:02]} 8. O-O {[%emt 0:00:10]} O-O {[%emt 0:00:08]} 9. Nc4 {[%emt 0:00:24]}
Qc7 {[%emt 0:00:02]} 10. e5 {[%emt 0:00:15]} f5 {[%emt 0:00:40]} 11. exf6 {
[%emt 0:01:22]} Rxf6 {[%emt 0:00:02]} 12. Ng5 {[%emt 0:01:15]} Rh6 {[%emt 0:00:
30]} 13. f4 {[%emt 0:00:24]} d5 {[%emt 0:00:36]} 14. Nd2 {[%emt 0:00:37]} Bd7 {
[%emt 0:01:37]} 15. g3 {[%emt 0:01:37]} e5 {[%emt 0:01:27]} 16. fxe5 {[%emt 0:
02:51]} Qxe5 {[%emt 0:00:01]} 17. Ndf3 {[%emt 0:01:25]} Qe3+ {[%emt 0:00:02]}
18. Kg2 {[%emt 0:01:00]} Ne5 {[%emt 0:02:12]} 19. Nxe5 {[%emt 0:01:13]} Qxg5 {
[%emt 0:03:42]} 20. Nxd7 {[%emt 0:00:26]} Re8 {[%emt 0:00:43]} 21. Qf3 {
[%emt 0:00:32]} Nf5 {[%emt 0:00:55]} 22. Qxf5 {[%emt 0:00:20]} Qe7 {[%emt 0:00:
01]} 23. Rae1 {[%emt 0:00:29]} 1-0

[Event "European Rapid Championship 2021"]
[Site "Katowice"]
[Date "2021.12.19"]
[Round "8.21"]
[White "Krzywda, Andrzej"]
[Black "Kowalski, Igor"]
[Result "0-1"]
[ECO "B06"]
[WhiteElo "2123"]
[BlackElo "2295"]
[Annotator "NA"]
[PlyCount "74"]
[EventDate "2021.12.18"]
[EventType "swiss"]
[EventCountry "POL"]
[SourceTitle "playchess.com"]
[Source "ChessBase"]
[SourceQuality "1"]
[TimeControl "900+10"]

1. e4 {[%emt 0:00:01]} g6 {[%emt 0:00:01]} 2. d4 {[%emt 0:00:01]} Bg7 {[%emt 0:
00:01]} 3. Nc3 {[%emt 0:00:01]} d6 {[%emt 0:00:01]} 4. Be3 {[%emt 0:00:06]} a6
{[%emt 0:00:02]} 5. g4 {[%emt 0:00:12]} b5 {[%emt 0:00:05]} 6. Bg2 {[%emt 0:00:
02]} Bb7 {[%emt 0:00:01]} 7. h4 {[%emt 0:00:02]} h6 {[%emt 0:00:29]} 8. h5 {
[%emt 0:00:17]} g5 {[%emt 0:00:01]} 9. Nce2 {[%emt 0:00:08]} Nd7 {[%emt 0:00:
08]} 10. Ng3 {[%emt 0:00:26]} e6 {[%emt 0:00:02]} 11. N1e2 {[%emt 0:01:23]} Ne7
{[%emt 0:00:07]} 12. f4 {[%emt 0:01:15]} gxf4 {[%emt 0:00:09]} 13. Bxf4 {
[%emt 0:00:27]} Nb6 {[%emt 0:01:07]} 14. O-O {[%emt 0:00:59]} Qd7 {[%emt 0:00:
17]} 15. b3 {[%emt 0:03:45]} e5 {[%emt 0:01:01]} 16. dxe5 {[%emt 0:00:29]} Bxe5
{[%emt 0:01:14]} 17. Nd4 {[%emt 0:01:06]} Rg8 {[%emt 0:00:18]} 18. Bxe5 {
[%emt 0:02:14]} dxe5 {[%emt 0:00:06]} 19. Ndf5 {[%emt 0:00:02]} Qxd1 {[%emt 0:
00:31]} 20. Raxd1 {[%emt 0:00:07]} Rxg4 {[%emt 0:00:12]} 21. Kh2 {[%emt 0:01:
37]} Nxf5 {[%emt 0:01:09]} 22. Rxf5 {[%emt 0:00:21]} Nd7 {[%emt 0:00:29]} 23.
Bh3 {[%emt 0:00:35]} Rh4 {[%emt 0:00:19]} 24. Rxf7 {[%emt 0:01:50]} Kxf7 {
[%emt 0:00:27]} 25. Rxd7+ {[%emt 0:00:25]} Kg8 {[%emt 0:05:03]} 26. Nf5 {
[%emt 0:00:16]} Rxh5 {[%emt 0:00:43]} 27. Rxc7 {[%emt 0:01:02]} Bxe4 {[%emt 0:
00:22]} 28. Ng3 {[%emt 0:00:28]} Rh4 {[%emt 0:00:01]} 29. Re7 {[%emt 0:00:11]}
Rd8 {[%emt 0:01:49]} 30. Rxe5 {[%emt 0:00:09]} Rd2+ {[%emt 0:00:11]} 31. Kg1 {
[%emt 0:00:01]} Rxh3 {[%emt 0:00:22]} 32. Nxe4 {[%emt 0:00:07]} Rxc2 {[%emt 0:
00:04]} 33. Re7 {[%emt 0:00:09]} Rd3 {[%emt 0:00:15]} 34. Nf2 {[%emt 0:00:25]}
Rg3+ {[%emt 0:00:06]} 35. Kf1 {[%emt 0:00:06]} Rf3 {[%emt 0:00:01]} 36. Re2 {
[%emt 0:00:13]} Rxe2 {[%emt 0:00:03]} 37. Kxe2 {[%emt 0:00:01]} Rxf2+ {[%emt 0:
00:21]} 0-1

[Event "European Rapid Championship 2021"]
[Site "Katowice"]
[Date "2021.12.19"]
[Round "8.21"]
[White "Grzesik, Gracjan"]
[Black "Kyc, Jerzy"]
[Result "0-1"]
[ECO "A29"]
[WhiteElo "1992"]
[BlackElo "2308"]
[Annotator "NA"]
[PlyCount "124"]
[EventDate "2021.12.18"]
[EventType "swiss"]
[EventCountry "POL"]
[SourceTitle "playchess.com"]
[Source "ChessBase"]
[SourceQuality "1"]
[TimeControl "900+10"]

1. c4 {[%emt 0:00:06]} Nf6 {[%emt 0:00:02]} 2. Nc3 {[%emt 0:00:01]} e5 {
[%emt 0:00:01]} 3. Nf3 {[%emt 0:00:03]} Nc6 {[%emt 0:00:01]} 4. g3 {[%emt 0:00:
01]} Bb4 {[%emt 0:00:02]} 5. Bg2 {[%emt 0:00:03]} O-O {[%emt 0:00:02]} 6. O-O {
[%emt 0:00:07]} d6 {[%emt 0:00:06]} 7. d3 {[%emt 0:00:04]} h6 {[%emt 0:00:44]}
8. Bd2 {[%emt 0:00:51]} Be6 {[%emt 0:00:15]} 9. a3 {[%emt 0:00:16]} Bxc3 {
[%emt 0:00:05]} 10. Bxc3 {[%emt 0:00:02]} Qd7 {[%emt 0:00:02]} 11. b4 {[%emt 0:
00:55]} Bh3 {[%emt 0:00:03]} 12. Qb3 {[%emt 0:00:16]} Bxg2 {[%emt 0:00:16]} 13.
Kxg2 {[%emt 0:00:03]} Ne7 {[%emt 0:00:59]} 14. Rac1 {[%emt 0:00:24]} Ng6 {
[%emt 0:00:40]} 15. h3 {[%emt 0:00:32]} Rfe8 {[%emt 0:00:16]} 16. Bb2 {[%emt 0:
00:24]} c6 {[%emt 0:02:54]} 17. Rfe1 {[%emt 0:00:27]} h5 {[%emt 0:00:52]} 18.
e4 {[%emt 0:01:48]} a5 {[%emt 0:00:56]} 19. c5 {[%emt 0:00:20]} axb4 {[%emt 0:
00:08]} 20. axb4 {[%emt 0:00:18]} d5 {[%emt 0:00:51]} 21. exd5 {[%emt 0:05:01]}
Qxd5 {[%emt 0:00:05]} 22. Qxd5 {[%emt 0:00:53]} Nxd5 {[%emt 0:00:01]} 23. Nxe5
{[%emt 0:01:57]} Nxe5 {[%emt 0:01:27]} 24. Bxe5 {[%emt 0:01:28]} Nxb4 {[%emt 0:
00:09]} 25. Bd6 {[%emt 0:00:50]} Nxd3 {[%emt 0:03:08]} 26. Rxe8+ {[%emt 0:00:
44]} Rxe8 {[%emt 0:00:01]} 27. Rc3 {[%emt 0:00:58]} Nb4 {[%emt 0:00:23]} 28.
Rb3 {[%emt 0:00:28]} Re4 {[%emt 0:00:02]} 29. Kf3 {[%emt 0:00:20]} Rc4 {
[%emt 0:00:22]} 30. g4 {[%emt 0:00:18]} h4 {[%emt 0:00:30]} 31. Be7 {[%emt 0:
00:11]} f6 {[%emt 0:00:07]} 32. Bd6 {[%emt 0:00:02]} Kf7 {[%emt 0:00:16]} 33.
Kg2 {[%emt 0:00:16]} g5 {[%emt 0:00:16]} 34. Kf3 {[%emt 0:00:10]} f5 {[%emt 0:
00:20]} 35. gxf5 {[%emt 0:00:07]} Kf6 {[%emt 0:00:01]} 36. Kg2 {[%emt 0:00:10]}
Kxf5 {[%emt 0:00:07]} 37. Rf3+ {[%emt 0:00:08]} Kg6 {[%emt 0:00:02]} 38. Rb3 {
[%emt 0:00:02]} Kh5 {[%emt 0:01:14]} 39. Kh2 {[%emt 0:00:16]} Na6 {[%emt 0:01:
17]} 40. Rxb7 {[%emt 0:00:06]} Nxc5 {[%emt 0:00:01]} 41. Bxc5 {[%emt 0:00:22]}
Rxc5 {[%emt 0:00:01]} 42. Rc7 {[%emt 0:00:09]} Rc3 {[%emt 0:00:24]} 43. Kg2 {
[%emt 0:00:10]} Kg6 {[%emt 0:00:11]} 44. Rc8 {[%emt 0:00:08]} c5 {[%emt 0:00:
13]} 45. Rg8+ {[%emt 0:00:12]} Kf6 {[%emt 0:00:00]} 46. Rf8+ {[%emt 0:00:03]}
Kg7 {[%emt 0:00:01]} 47. Rc8 {[%emt 0:00:01]} c4 {[%emt 0:00:09]} 48. Rc6 {
[%emt 0:00:20]} Kf7 {[%emt 0:00:04]} 49. Kh2 {[%emt 0:00:18]} Ke7 {[%emt 0:00:
47]} 50. Kg2 {[%emt 0:00:08]} Kd7 {[%emt 0:01:05]} 51. Rc5 {[%emt 0:00:11]} Kd6
{[%emt 0:00:01]} 52. Rxg5 {[%emt 0:00:02]} Rd3 {[%emt 0:00:09]} 53. Rg8 {
[%emt 0:00:15]} Kc5 {[%emt 0:00:36]} 54. Rc8+ {[%emt 0:00:06]} Kb4 {[%emt 0:00:
41]} 55. f4 {[%emt 0:00:15]} c3 {[%emt 0:00:03]} 56. f5 {[%emt 0:00:09]} Rd5 {
[%emt 0:00:25]} 57. Kf3 {[%emt 0:00:13]} Rxf5+ {[%emt 0:00:01]} 58. Kg4 {
[%emt 0:00:01]} Rc5 {[%emt 0:00:02]} 59. Rb8+ {[%emt 0:00:04]} Ka3 {[%emt 0:00:
24]} 60. Rb1 {[%emt 0:00:03]} Rc4+ {[%emt 0:00:06]} 61. Kg5 {[%emt 0:00:09]} c2
{[%emt 0:00:02]} 62. Rc1 {[%emt 0:00:04]} Kb2 {[%emt 0:00:01]} 0-1

[Event "European Rapid Championship 2021"]
[Site "Katowice"]
[Date "2021.12.19"]
[Round "8.22"]
[White "Rozman, Monika"]
[Black "Wisniewski, Michal"]
[Result "1-0"]
[ECO "B07"]
[WhiteElo "1998"]
[BlackElo "2248"]
[Annotator "NA"]
[PlyCount "49"]
[EventDate "2021.12.18"]
[EventType "swiss"]
[EventCountry "POL"]
[SourceTitle "playchess.com"]
[Source "ChessBase"]
[SourceQuality "1"]
[TimeControl "900+10"]

1. e4 {[%emt 0:00:00]} Nf6 {[%emt 0:00:03]} 2. Nc3 {[%emt 0:00:03]} d6 {
[%emt 0:00:03]} 3. d4 {[%emt 0:00:02]} g6 {[%emt 0:00:02]} 4. Be3 {[%emt 0:00:
11]} Bg7 {[%emt 0:00:03]} 5. h3 {[%emt 0:00:17]} c6 {[%emt 0:00:15]} 6. f4 {
[%emt 0:00:22]} Qa5 {[%emt 0:00:45]} 7. Qd2 {[%emt 0:00:12]} Nbd7 {[%emt 0:00:
16]} 8. Nf3 {[%emt 0:00:27]} O-O {[%emt 0:00:20]} 9. Bd3 {[%emt 0:00:45]} e5 {
[%emt 0:00:13]} 10. O-O {[%emt 0:00:19]} Re8 {[%emt 0:00:15]} 11. Rae1 {
[%emt 0:00:31]} b5 {[%emt 0:00:04]} 12. fxe5 {[%emt 0:01:10]} dxe5 {[%emt 0:00:
02]} 13. dxe5 {[%emt 0:01:41]} Nh5 {[%emt 0:01:35]} 14. e6 {[%emt 0:00:02]}
Rxe6 {[%emt 0:00:01]} 15. Ng5 {[%emt 0:00:13]} Re7 {[%emt 0:00:01]} 16. Nd5 {
[%emt 0:00:04]} Qd8 {[%emt 0:00:11]} 17. Nxe7+ {[%emt 0:00:05]} Qxe7 {[%emt 0:
00:01]} 18. Rxf7 {[%emt 0:00:28]} Qe5 {[%emt 0:00:03]} 19. Ref1 {[%emt 0:01:20]
} h6 {[%emt 0:00:27]} 20. Nf3 {[%emt 0:00:08]} Qe6 {[%emt 0:01:24]} 21. Nd4 {
[%emt 0:00:16]} Qd6 {[%emt 0:00:01]} 22. Nb3 {[%emt 0:00:30]} Ne5 {[%emt 0:00:
04]} 23. Bc5 {[%emt 0:00:55]} Qe6 {[%emt 0:00:40]} 24. Re7 {[%emt 0:01:36]} Nc4
{[%emt 0:00:34]} 25. Rxe6 {[%emt 0:00:11]} 1-0

[Event "European Rapid Championship 2021"]
[Site "Katowice"]
[Date "2021.12.19"]
[Round "8.23"]
[White "Sotsky, Alexander"]
[Black "Walter, Szymon"]
[Result "0-1"]
[ECO "A45"]
[WhiteElo "2333"]
[BlackElo "2203"]
[Annotator "NA"]
[PlyCount "108"]
[EventDate "2021.12.18"]
[EventType "swiss"]
[EventCountry "POL"]
[SourceTitle "playchess.com"]
[Source "ChessBase"]
[SourceQuality "1"]
[TimeControl "900+10"]

1. d4 {[%emt 0:00:07]} Nf6 {[%emt 0:00:05]} 2. Bg5 {[%emt 0:00:01]} Ne4 {
[%emt 0:00:08]} 3. Bh4 {[%emt 0:00:03]} d5 {[%emt 0:00:18]} 4. f3 {[%emt 0:00:
02]} Nf6 {[%emt 0:00:02]} 5. c3 {[%emt 0:00:39]} g6 {[%emt 0:01:04]} 6. Nd2 {
[%emt 0:01:44]} Bg7 {[%emt 0:00:04]} 7. e3 {[%emt 0:00:03]} O-O {[%emt 0:00:06]
} 8. Bd3 {[%emt 0:00:00]} Nbd7 {[%emt 0:00:18]} 9. f4 {[%emt 0:00:02]} c5 {
[%emt 0:00:25]} 10. Ngf3 {[%emt 0:00:02]} b6 {[%emt 0:00:14]} 11. O-O {[%emt 0:
00:06]} Bb7 {[%emt 0:00:15]} 12. Ne5 {[%emt 0:00:16]} Ne4 {[%emt 0:00:11]} 13.
Nxe4 {[%emt 0:00:51]} dxe4 {[%emt 0:00:04]} 14. Bc4 {[%emt 0:00:03]} cxd4 {
[%emt 0:00:38]} 15. cxd4 {[%emt 0:00:21]} Nf6 {[%emt 0:00:11]} 16. f5 {[%emt 0:
02:31]} Bd5 {[%emt 0:00:07]} 17. fxg6 {[%emt 0:00:58]} hxg6 {[%emt 0:00:05]}
18. b3 {[%emt 0:01:25]} Qd6 {[%emt 0:00:28]} 19. Rc1 {[%emt 0:01:42]} Rac8 {
[%emt 0:00:25]} 20. Qe2 {[%emt 0:00:17]} Bxc4 {[%emt 0:03:34]} 21. Rxc4 {
[%emt 0:00:58]} Rxc4 {[%emt 0:00:43]} 22. Nxc4 {[%emt 0:01:03]} Qe6 {[%emt 0:
00:08]} 23. Bxf6 {[%emt 0:00:47]} Bxf6 {[%emt 0:00:35]} 24. Rd1 {[%emt 0:00:31]
} Rd8 {[%emt 0:00:07]} 25. Qf2 {[%emt 0:00:19]} Rd5 {[%emt 0:00:11]} 26. Qg3 {
[%emt 0:00:57]} Kg7 {[%emt 0:00:09]} 27. Nd2 {[%emt 0:00:11]} Rg5 {[%emt 0:00:
32]} 28. Qf4 {[%emt 0:00:10]} Rg4 {[%emt 0:00:04]} 29. Qb8 {[%emt 0:00:15]} Qf5
{[%emt 0:01:48]} 30. Re1 {[%emt 0:00:42]} Qa5 {[%emt 0:03:38]} 31. Re2 {
[%emt 0:01:04]} Qxa2 {[%emt 0:00:04]} 32. h3 {[%emt 0:00:33]} Rh4 {[%emt 0:00:
26]} 33. Kf2 {[%emt 0:00:12]} Rh5 {[%emt 0:00:31]} 34. Qb7 {[%emt 0:00:38]} Qa1
{[%emt 0:01:07]} 35. Qxe4 {[%emt 0:00:17]} Bh4+ {[%emt 0:00:20]} 36. g3 {
[%emt 0:00:07]} Bf6 {[%emt 0:00:35]} 37. h4 {[%emt 0:00:14]} Rf5+ {[%emt 0:00:
11]} 38. Kg2 {[%emt 0:00:10]} Qd1 {[%emt 0:00:13]} 39. Qg4 {[%emt 0:00:24]} Ra5
{[%emt 0:00:41]} 40. Ne4 {[%emt 0:00:26]} Ra1 {[%emt 0:00:30]} 41. Nf2 {
[%emt 0:00:01]} Qf1+ {[%emt 0:00:15]} 42. Kf3 {[%emt 0:00:01]} Ra5 {[%emt 0:00:
08]} 43. Ke4 {[%emt 0:00:21]} Qb1+ {[%emt 0:00:25]} 44. Kf3 {[%emt 0:00:02]}
Qf1 {[%emt 0:00:07]} 45. Ke4 {[%emt 0:00:00]} e5 {[%emt 0:00:11]} 46. Kd3 {
[%emt 0:00:17]} exd4 {[%emt 0:00:04]} 47. exd4 {[%emt 0:00:05]} Qb1+ {[%emt 0:
00:13]} 48. Kc3 {[%emt 0:00:09]} Rc5+ {[%emt 0:00:18]} 49. Kd2 {[%emt 0:00:05]}
Rc2+ {[%emt 0:00:08]} 50. Ke3 {[%emt 0:00:02]} Qxb3+ {[%emt 0:00:12]} 51. Nd3 {
[%emt 0:00:01]} Rc3 {[%emt 0:00:11]} 52. Qe4 {[%emt 0:00:05]} Rc4 {[%emt 0:00:
04]} 53. Qd5 {[%emt 0:00:22]} Qc3 {[%emt 0:00:09]} 54. Qb5 {[%emt 0:00:29]}
Bxd4+ {[%emt 0:00:09]} 0-1

[Event "European Rapid Championship 2021"]
[Site "Katowice"]
[Date "2021.12.19"]
[Round "8.23"]
[White "Kubicka, Anna"]
[Black "Andersen, Mads"]
[Result "0-1"]
[ECO "C60"]
[WhiteElo "2273"]
[BlackElo "2574"]
[Annotator "ChessBase"]
[PlyCount "70"]
[EventDate "2021.12.18"]
[EventType "swiss"]
[EventCountry "POL"]
[SourceTitle "playchess.com"]
[Source "ChessBase"]
[SourceQuality "1"]
[TimeControl "900+10"]

1. e4 {[%emt 0:00:07]} e5 {[%emt 0:00:02]} 2. Nf3 {[%emt 0:00:01]} Nc6 {
[%emt 0:00:01]} 3. Bb5 {[%emt 0:00:02]} Nge7 {[%emt 0:00:02]} 4. O-O {[%emt 0:
00:04]} g6 {[%emt 0:00:05]} 5. d4 {[%emt 0:00:11]} exd4 {[%emt 0:00:13]} 6.
Nxd4 {[%emt 0:00:05]} Bg7 {[%emt 0:00:07]} 7. Nxc6 {[%emt 0:00:30]} bxc6 {
[%emt 0:00:13]} 8. Bd3 {[%emt 0:00:20]} O-O {[%emt 0:00:10]} 9. c3 {[%emt 0:00:
33]} d6 {[%emt 0:01:50]} 10. Bg5 {[%emt 0:00:25]} Rb8 {[%emt 0:00:39]} 11. Qc2
{[%emt 0:00:14]} Be6 {[%emt 0:00:59]} 12. Nd2 {[%emt 0:00:12]} Qd7 {[%emt 0:00:
02]} 13. f4 {[%emt 0:01:53]} f5 {[%emt 0:01:51]} 14. Bxe7 {[%emt 0:00:40]} Qxe7
{[%emt 0:00:39]} 15. exf5 {[%emt 0:00:31]} Bxf5 {[%emt 0:01:56]} 16. Rae1 {
[%emt 0:01:43]} Qf7 {[%emt 0:01:41]} 17. Bxf5 {[%emt 0:04:07]} Qxf5 {[%emt 0:
00:03]} 18. Qxf5 {[%emt 0:00:22]} Rxf5 {[%emt 0:00:05]} 19. Nb3 {[%emt 0:00:22]
} c5 {[%emt 0:02:21]} 20. Re7 {[%emt 0:03:09]} Rf7 {[%emt 0:02:35]} 21. Rxf7 {
[%emt 0:00:31]} Kxf7 {[%emt 0:00:02]} 22. Rf2 {[%emt 0:00:16]} Ke6 {[%emt 0:00:
45]} 23. g4 {[%emt 0:00:28]} c4 {[%emt 0:00:36]} 24. f5+ {[%emt 0:00:05]} gxf5
{[%emt 0:00:17]} 25. gxf5+ {[%emt 0:00:02]} Kd5 {[%emt 0:00:25]} 26. Rd2+ {
[%emt 0:02:17]} Ke4 {[%emt 0:00:05]} 27. Nd4 {[%emt 0:00:03]} Ke3 {[%emt 0:01:
11]} 28. Re2+ {[%emt 0:00:19]} Kd3 {[%emt 0:00:03]} 29. Re7 {[%emt 0:00:14]}
Bxd4+ {[%emt 0:00:12]} 30. cxd4 {[%emt 0:00:01]} Rxb2 {[%emt 0:00:30]} 31. f6 {
[%emt 0:00:04]} Rb5 {[%emt 0:00:17]} 32. f7 {[%emt 0:00:16]} Rf5 {[%emt 0:00:
03]} 33. Rxc7 {[%emt 0:00:01]} c3 {[%emt 0:00:05]} 34. Kg2 {[%emt 0:00:12]} c2
{[%emt 0:00:03]} 35. Kg3 {[%emt 0:00:28]} Rxf7 {[%emt 0:00:09]} 0-1

[Event "European Rapid Championship 2021"]
[Site "Katowice"]
[Date "2021.12.19"]
[Round "8.24"]
[White "Danielyan, Vahe"]
[Black "Malicka, Maria"]
[Result "1-0"]
[ECO "B11"]
[WhiteElo "2198"]
[BlackElo "1947"]
[Annotator "NA"]
[PlyCount "95"]
[EventDate "2021.12.18"]
[EventType "swiss"]
[EventCountry "POL"]
[SourceTitle "playchess.com"]
[Source "ChessBase"]
[SourceQuality "1"]
[TimeControl "900+10"]

1. e4 {[%emt 0:00:03]} c6 {[%emt 0:00:01]} 2. Nc3 {[%emt 0:00:42]} d5 {[%emt 0:
00:02]} 3. Nf3 {[%emt 0:00:02]} Bg4 {[%emt 0:00:01]} 4. d4 {[%emt 0:00:02]} e6
{[%emt 0:00:44]} 5. Be2 {[%emt 0:00:15]} Nd7 {[%emt 0:00:22]} 6. O-O {[%emt 0:
00:05]} dxe4 {[%emt 0:00:08]} 7. Nxe4 {[%emt 0:00:15]} Ngf6 {[%emt 0:00:02]} 8.
Ng3 {[%emt 0:00:27]} Bd6 {[%emt 0:00:14]} 9. h3 {[%emt 0:00:01]} Bxf3 {[%emt 0:
00:08]} 10. Bxf3 {[%emt 0:00:02]} Qc7 {[%emt 0:00:17]} 11. c3 {[%emt 0:01:34]}
O-O {[%emt 0:00:59]} 12. Qb3 {[%emt 0:00:08]} Nb6 {[%emt 0:00:42]} 13. a4 {
[%emt 0:00:03]} a5 {[%emt 0:00:24]} 14. Bg5 {[%emt 0:00:12]} Be7 {[%emt 0:01:
30]} 15. Rfe1 {[%emt 0:00:08]} Nfd5 {[%emt 0:00:32]} 16. Bd2 {[%emt 0:00:14]}
Nd7 {[%emt 0:00:17]} 17. Nf5 {[%emt 0:00:57]} Bf6 {[%emt 0:00:31]} 18. Ne3 {
[%emt 0:00:04]} Nxe3 {[%emt 0:00:44]} 19. Bxe3 {[%emt 0:00:22]} Nb6 {[%emt 0:
00:24]} 20. g3 {[%emt 0:00:05]} Nd5 {[%emt 0:00:05]} 21. Bd2 {[%emt 0:00:01]}
Be7 {[%emt 0:00:35]} 22. Kg2 {[%emt 0:00:02]} Rfd8 {[%emt 0:00:17]} 23. Re2 {
[%emt 0:00:01]} c5 {[%emt 0:00:30]} 24. dxc5 {[%emt 0:00:20]} Bxc5 {[%emt 0:00:
01]} 25. Rae1 {[%emt 0:00:08]} Rac8 {[%emt 0:00:18]} 26. Bg5 {[%emt 0:00:34]}
Rd7 {[%emt 0:00:57]} 27. h4 {[%emt 0:02:58]} h6 {[%emt 0:00:02]} 28. Bc1 {
[%emt 0:00:05]} Rcd8 {[%emt 0:00:47]} 29. Qb5 {[%emt 0:01:58]} Qb6 {[%emt 0:02:
11]} 30. Qc4 {[%emt 0:01:11]} Rc7 {[%emt 0:00:18]} 31. Qg4 {[%emt 0:00:18]} Nf6
{[%emt 0:00:14]} 32. Qh3 {[%emt 0:00:05]} Qb3 {[%emt 0:00:28]} 33. g4 {[%emt 0:
00:14]} Nd5 {[%emt 0:03:40]} 34. g5 {[%emt 0:00:02]} Qxa4 {[%emt 0:00:09]} 35.
Re4 {[%emt 0:00:27]} Qc2 {[%emt 0:00:07]} 36. R4e2 {[%emt 0:01:33]} Qa4 {
[%emt 0:00:48]} 37. b4 {[%emt 0:02:18]} axb4 {[%emt 0:00:17]} 38. gxh6 {
[%emt 0:00:01]} g6 {[%emt 0:01:17]} 39. h5 {[%emt 0:00:49]} bxc3 {[%emt 0:00:
11]} 40. hxg6 {[%emt 0:00:09]} Nf4+ {[%emt 0:00:11]} 41. Bxf4 {[%emt 0:00:02]}
Qxf4 {[%emt 0:00:01]} 42. Re4 {[%emt 0:01:45]} Qd2 {[%emt 0:00:27]} 43. R1e2 {
[%emt 0:00:12]} Qd3 {[%emt 0:00:15]} 44. Qg3 {[%emt 0:00:53]} Re7 {[%emt 0:00:
07]} 45. h7+ {[%emt 0:00:19]} Kg7 {[%emt 0:00:11]} 46. gxf7+ {[%emt 0:00:02]}
Kxf7 {[%emt 0:00:07]} 47. Bh5+ {[%emt 0:00:03]} Kf6 {[%emt 0:00:02]} 48. Qg6# {
[%emt 0:00:03]} 1-0

[Event "European Rapid Championship 2021"]
[Site "Katowice"]
[Date "2021.12.19"]
[Round "8.24"]
[White "Froewis, Annika"]
[Black "Laurusas, Tomas"]
[Result "0-1"]
[ECO "B90"]
[WhiteElo "2079"]
[BlackElo "2553"]
[Annotator "ChessBase"]
[PlyCount "38"]
[EventDate "2021.12.18"]
[EventType "swiss"]
[EventCountry "POL"]
[SourceTitle "playchess.com"]
[Source "ChessBase"]
[SourceQuality "1"]
[TimeControl "900+10"]

1. e4 {[%emt 0:00:02]} c5 {[%emt 0:00:01]} 2. Nf3 {[%emt 0:00:01]} d6 {[%emt 0:
00:01]} 3. d4 {[%emt 0:00:01]} cxd4 {[%emt 0:00:02]} 4. Nxd4 {[%emt 0:00:02]}
Nf6 {[%emt 0:00:02]} 5. Nc3 {[%emt 0:00:01]} a6 {[%emt 0:00:03]} 6. h4 {
[%emt 0:00:13]} Nc6 {[%emt 0:01:07]} 7. a4 {[%emt 0:03:01]} e5 {[%emt 0:01:17]}
8. Nb3 {[%emt 0:00:17]} Be6 {[%emt 0:01:16]} 9. Bg5 {[%emt 0:01:48]} Be7 {
[%emt 0:00:02]} 10. g3 {[%emt 0:00:36]} Nb4 {[%emt 0:02:22]} 11. f4 {[%emt 0:
02:03]} exf4 {[%emt 0:00:56]} 12. gxf4 {[%emt 0:00:18]} h6 {[%emt 0:00:11]} 13.
Bxf6 {[%emt 0:00:46]} Bxf6 {[%emt 0:00:03]} 14. h5 {[%emt 0:00:51]} Qb6 {
[%emt 0:03:44]} 15. Be2 {[%emt 0:05:32]} Rc8 {[%emt 0:02:36]} 16. Qd2 {[%emt 0:
00:37]} O-O {[%emt 0:00:50]} 17. Ra3 {[%emt 0:00:37]} Rfe8 {[%emt 0:01:00]} 18.
a5 {[%emt 0:00:05]} Qc6 {[%emt 0:01:25]} 19. Nd4 {[%emt 0:00:36]} Bxd4 {
[%emt 0:00:02]} 0-1